bitfinex-derivatives/quotes_SOLF0:USTF0_20250523
["timestamp","ask_amount","ask_price","bid_price","bid_amount"]
[1748021514631,0.03967919,181.83,181.79,0.03468543]
[1748021515540,5.496,181.92,181.81,8.55321735]
[1748021515731,5.496,181.92,181.86,8.55321735]
[1748021515930,13.65551221,182.0,181.87,219.34]
[1748021516240,13.65551221,182.0,181.88,5.497]
[1748021516432,8.55321735,181.98,181.92,0.03557536]
[1748021516633,8.55321735,181.95,181.84,5.498]
[1748021516838,8.55321735,181.95,181.83,219.34]
[1748021517139,3.6501,181.94,181.83,219.34]
[1748021517341,5.4967,181.9,181.84,5.498]
[1748021517538,114.8,181.92,181.85,0.03607205]
[1748021517846,0.03866966,181.89,181.85,0.03607205]
[1748021518460,5.53566966,181.89,181.85,5.53397205]
[1748021518650,0.03866966,181.89,181.85,0.03607205]
[1748021519337,0.03866966,181.89,181.86,5.4976]
[1748021519638,0.03866966,181.89,181.85,0.03607205]
[1748021520038,5.53546966,181.89,181.85,0.03607205]
[1748021520238,0.03866966,181.89,181.85,0.03607205]
[1748021520642,0.03866966,181.89,181.86,5.4976]
[1748021520828,0.03866966,181.89,181.85,0.03607205]
[1748021521637,5.4973,181.88,181.85,0.03607205]
[1748021521841,0.03866966,181.89,181.85,0.03607205]
[1748021522949,5.4977,181.86,181.85,0.03607205]
[1748021527857,5.4973,181.88,181.85,0.03607205]
[1748021528055,0.03866966,181.89,181.85,0.03607205]
[1748021528350,5.4992,181.81,181.76,403.6644]
[1748021528554,114.78,181.85,181.76,399.78]
[1748021528742,118.6819,181.84,181.74,389.48]
[1748021528955,5.4998,181.8,181.74,389.48]
[1748021529160,118.6819,181.84,181.74,389.48]
[1748021529455,0.03625868,181.81,181.77,5.53788879]
[1748021529659,5.53565868,181.81,181.77,5.53788879]
[1748021529865,0.03625868,181.81,181.77,5.53788879]
[1748021530160,0.03625868,181.81,181.77,0.03778879]
[1748021530355,0.03625868,181.81,181.77,399.83778879]
[1748021530555,114.8,181.88,181.78,3.8957]
[1748021530756,114.8,181.88,181.78,288.8957]
[1748021530956,114.8,181.88,181.79,104.5]
[1748021531569,114.8,181.88,181.82,0.03482403]
[1748021531570,0.04014812,181.85,181.82,0.03482403]
[1748021532066,0.04014812,181.85,181.82,5.53342403]
[1748021532660,5.4986,181.83,181.82,0.03482403]
[1748021533559,0.04014812,181.85,181.82,0.03482403]
[1748021535768,0.04014812,181.85,181.82,5.53342403]
[1748021535964,0.04014812,181.85,181.82,0.03482403]
[1748021536871,5.4985,181.84,181.82,0.03482403]
[1748021539072,5.4986,181.83,181.82,0.03482403]
[1748021539971,5.53824812,181.85,181.82,0.03482403]
[1748021540473,5.4986,181.83,181.82,0.03482403]
[1748021542681,5.4998,181.79,181.78,285.0]
[1748021542879,114.8,181.83,181.74,5.5012]
[1748021543073,5.5003,181.78,181.74,290.5012]
[1748021543272,5.5003,181.78,181.74,285.0]
[1748021543682,5.53898113,181.78,181.74,285.03609234]
[1748021543880,0.03868113,181.78,181.74,285.03609234]
[1748021545580,5.501,181.75,181.74,285.03609234]
[1748021545780,0.03868113,181.78,181.74,285.03609234]
[1748021546082,5.501,181.75,181.74,285.03609234]
[1748021546285,5.501,181.75,181.74,0.03609234]
[1748021547478,114.79868113,181.78,181.74,0.03609234]
[1748021547884,5.501,181.75,181.74,0.03609234]
[1748021549079,5.5008,181.76,181.74,0.03609234]
[1748021549280,114.79868113,181.78,181.74,0.03609234]
[1748021549675,5.5004,181.77,181.74,0.03609234]
[1748021549973,114.79868113,181.78,181.74,0.03609234]
[1748021550280,5.5004,181.77,181.74,0.03609234]
[1748021550469,114.79868113,181.78,181.74,0.03609234]
[1748021550974,5.5009,181.76,181.74,0.03609234]
[1748021552681,5.501,181.75,181.74,0.03609234]
[1748021554881,5.501,181.75,181.74,9.234e-05]
[1748021555092,5.5031,181.68,181.64,1.9532]
[1748021555979,5.5029,181.69,181.65,5.5039]
[1748021556284,5.53979485,181.69,181.65,5.54112095]
[1748021556484,0.03689485,181.69,181.67,5.5033]
[1748021556686,0.03689485,181.69,181.65,0.03722095]
[1748021557088,0.03689485,181.69,181.66,5.5034]
[1748021557586,5.53999485,181.69,181.65,5.54112095]
[1748021557784,0.03689485,181.69,181.65,5.54112095]
[1748021558185,0.03689485,181.69,181.65,0.03722095]
[1748021558686,0.03689485,181.69,181.65,285.03722095]
[1748021558891,5.5034,181.68,181.65,290.54102095]
[1748021559890,5.5034,181.68,181.65,285.03722095]
[1748021560587,0.03689485,181.69,181.65,285.03722095]
[1748021561390,5.5033,181.68,181.65,285.03722095]
[1748021562399,5.53979485,181.69,181.65,290.54102095]
[1748021563000,5.5032,181.68,181.65,290.54102095]
[1748021563188,5.5032,181.68,181.65,285.03722095]
[1748021564692,5.5032,181.68,181.65,5.54122095]
[1748021564899,0.03689485,181.69,181.65,0.03722095]
[1748021565899,5.53979485,181.69,181.65,0.03722095]
[1748021566195,0.03689485,181.69,181.65,0.03722095]
[1748021566700,0.03689485,181.69,181.66,5.5035]
[1748021567498,5.53979485,181.69,181.66,5.5035]
[1748021567801,5.53979485,181.69,181.65,0.03722095]
[1748021567993,0.03689485,181.69,181.65,0.03722095]
[1748021568296,0.03689485,181.69,181.67,5.5031]
[1748021568497,0.03689485,181.69,181.66,8.54451213]
[1748021568695,114.82,181.77,181.69,8.54451213]
[1748021568998,104.56,181.84,181.69,293.54451213]
[1748021568999,114.82,181.81,181.69,293.54451213]
[1748021569191,5.5005,181.77,181.74,5.5011]
[1748021569601,5.53591349,181.77,181.74,0.03760825]
[1748021569900,0.03541349,181.77,181.75,5.5009]
[1748021570113,0.03541349,181.77,181.74,0.03760825]
[1748021571101,0.03541349,181.77,181.75,5.5008]
[1748021571402,0.03541349,181.77,181.74,0.03760825]
[1748021571796,0.03541349,181.77,181.75,5.5008]
[1748021572305,0.03541349,181.77,181.74,0.03760825]
[1748021572601,5.53601349,181.77,181.74,5.53880825]
[1748021572802,0.03541349,181.77,181.74,0.03760825]
[1748021573502,5.501,181.75,181.74,0.03760825]
[1748021573800,0.03541349,181.77,181.74,0.03760825]
[1748021575101,5.5007,181.76,181.74,0.03760825]
[1748021575400,0.03541349,181.77,181.74,0.03760825]
[1748021576201,5.53591349,181.77,181.74,0.03760825]
[1748021577009,0.03541349,181.77,181.74,0.03760825]
[1748021577703,5.53601349,181.77,181.74,0.03760825]
[1748021578398,5.5007,181.76,181.74,0.03760825]
[1748021580211,5.53591349,181.77,181.74,5.53880825]
[1748021580407,0.03541349,181.77,181.74,0.03760825]
[1748021580909,5.53591349,181.77,181.74,0.03760825]
[1748021581210,0.03541349,181.77,181.74,0.03760825]
[1748021581710,0.03541349,181.77,181.75,5.501]
[1748021582112,0.03541349,181.77,181.74,0.03760825]
[1748021582303,5.501,181.75,181.74,0.03760825]
[1748021582713,0.03541349,181.77,181.74,0.03760825]
[1748021583309,0.03541349,181.77,181.76,5.5007]
[1748021583913,0.03541349,181.77,181.75,5.501]
[1748021584307,0.03541349,181.77,181.74,0.03760825]
[1748021585016,5.501,181.75,181.74,0.03760825]
[1748021588918,5.5025,181.71,181.67,285.0]
[1748021589115,127.09371213,181.76,181.66,511.6849]
[1748021589413,127.09371213,181.76,181.66,405.2436]
[1748021589615,127.09371213,181.76,181.64,104.54]
[1748021589915,0.03945229,181.72,181.68,0.0375836]
[1748021590107,5.5028,181.69,181.68,0.0375836]
[1748021593511,5.5026,181.7,181.68,0.0375836]
[1748021593716,114.74,181.71,181.68,0.0375836]
[1748021594619,5.5028,181.69,181.68,0.0375836]
[1748021596824,5.5044,181.64,181.59,285.0]
[1748021597322,5.5044,181.64,181.6,5.5053]
[1748021597723,5.5046,181.63,181.6,5.5053]
[1748021597917,0.04178306,181.63,181.6,0.04163737]
[1748021598215,5.5052,181.61,181.6,0.04163737]
[1748021598418,120.2852,181.61,181.6,0.04163737]
[1748021598718,114.78,181.61,181.53,114.78]
[1748021598917,5.5065,181.57,181.53,114.78]
[1748021599118,114.78,181.61,181.53,5.5074]
[1748021599513,0.03496109,181.59,181.55,0.04080857]
[1748021600533,5.5067,181.56,181.55,0.04080857]
[1748021600730,120.2867,181.56,181.55,0.04080857]
[1748021600926,5.5076,181.53,181.52,5.04145084]
[1748021601119,123.32451213,181.56,181.5,6.72193445]
[1748021601431,5.5085,181.51,181.46,5.5095]
[1748021601630,5.5085,181.51,181.41,219.36]
[1748021601831,123.32451213,181.56,181.41,219.36]
[1748021602031,0.0374408,181.5,181.47,5.54641005]
[1748021602331,0.0374408,181.5,181.47,0.03721005]
[1748021602533,0.0374408,181.5,181.49,5.5089]
[1748021602730,114.78,181.56,181.48,1.9302]
[1748021603033,1.9116,181.6,181.48,3.8752]
[1748021603236,5.506,181.59,181.49,106.4985]
[1748021603435,116.7116,181.6,181.56,5.5065]
[1748021603732,114.84007042,181.6,181.56,0.03708601]
[1748021604237,0.04007042,181.6,181.56,0.03708601]
[1748021604736,0.04007042,181.6,181.58,5.5059]
[1748021604930,0.04007042,181.6,181.56,0.03708601]
[1748021605239,0.04007042,181.6,181.59,5.5058]
[1748021606539,0.04007042,181.6,181.58,5.506]
[1748021606738,0.04007042,181.6,181.56,0.03708601]
[1748021607140,0.04007042,181.6,181.59,5.5058]
[1748021609140,0.04007042,181.6,181.56,285.03708601]
[1748021609742,0.04007042,181.6,181.59,5.5058]
[1748021612244,5.54577042,181.6,181.56,285.03708601]
[1748021612448,0.04007042,181.6,181.56,285.03708601]
[1748021612845,0.04007042,181.6,181.57,5.5064]
[1748021613046,0.04007042,181.6,181.56,285.03708601]
[1748021613643,114.74,181.59,181.56,0.03708601]
[1748021614045,125.28401213,181.59,181.56,0.03708601]
[1748021614550,5.5064,181.57,181.56,0.03708601]
[1748021616247,0.04007042,181.6,181.56,0.03708601]
[1748021616542,114.78007042,181.6,181.57,5.5062]
[1748021616953,114.78007042,181.6,181.56,0.03708601]
[1748021617143,114.78007042,181.6,181.57,5.5064]
[1748021617340,114.78007042,181.6,181.56,0.03708601]
[1748021617652,114.78007042,181.6,181.57,5.5062]
[1748021619153,120.28577042,181.6,181.57,5.5062]
[1748021619854,114.78007042,181.6,181.56,0.03708601]
[1748021620354,120.28567042,181.6,181.57,5.5062]
[1748021622355,114.78007042,181.6,181.59,5.5058]
[1748021622752,114.78007042,181.6,181.56,285.03708601]
[1748021623163,114.78007042,181.6,181.57,5.5064]
[1748021623852,114.78007042,181.6,181.56,285.03708601]
[1748021624052,0.04007042,181.6,181.56,0.03708601]
[1748021624356,5.5062,181.58,181.56,0.03708601]
[1748021625158,5.5059,181.59,181.56,5.54378601]
[1748021625349,0.04007042,181.6,181.56,0.03708601]
[1748021625658,5.5062,181.58,181.56,0.03708601]
[1748021626351,0.04007042,181.6,181.56,0.03708601]
[1748021626352,5.5059,181.59,181.56,0.03708601]
[1748021627157,5.5059,181.59,181.56,5.54368601]
[1748021627556,5.5059,181.59,181.56,0.03708601]
[1748021628053,0.04007042,181.6,181.56,0.03708601]
[1748021628358,0.04007042,181.6,181.57,5.5062]
[1748021628657,0.04007042,181.6,181.56,0.03708601]
[1748021629061,0.04007042,181.6,181.56,5.54358601]
[1748021629368,5.5061,181.59,181.56,5.54358601]
[1748021630978,5.54567042,181.6,181.57,5.5064]
[1748021632666,5.5059,181.59,181.56,5.54368601]
[1748021633164,5.5059,181.59,181.56,0.03708601]
[1748021633360,5.5059,181.59,181.56,5.54368601]
[1748021633770,5.5059,181.59,181.56,0.03708601]
[1748021634261,5.54567042,181.6,181.56,0.03708601]
[1748021634763,5.54567042,181.6,181.57,5.5062]
[1748021635163,0.04007042,181.6,181.57,5.5062]
[1748021636061,0.04007042,181.6,181.56,0.03708601]
[1748021636961,8.58458255,181.6,181.56,0.03708601]
[1748021637162,5.5064,181.57,181.56,0.03708601]
[1748021639773,0.04007042,181.6,181.56,0.03708601]
[1748021640469,5.5064,181.57,181.56,0.03708601]
[1748021648084,5.5062,181.58,181.56,0.03708601]
[1748021648286,114.74007042,181.6,181.56,0.03708601]
[1748021649680,5.5064,181.57,181.56,0.03708601]
[1748021655297,8.54451213,181.58,181.47,405.1892]
[1748021655500,1.9426,181.57,181.47,405.1892]
[1748021656000,1.9426,181.57,181.48,5.509]
[1748021656300,0.03590312,181.54,181.51,0.0355871]
[1748021656497,5.5079,181.52,181.51,0.0355871]
[1748021656683,14.05241213,181.52,181.51,8.71e-05]
[1748021656885,8.54451213,181.52,181.43,401.6774]
[1748021657089,8.54451213,181.52,181.43,1.9774]
[1748021657805,5.5099,181.46,181.43,1.9774]
[1748021658098,5.5099,181.46,181.43,2.01260906]
[1748021658291,114.73666686,181.49,181.43,0.03520906]
[1748021658596,123.28117899,181.49,181.43,0.03520906]
[1748021659097,5.5104,181.44,181.43,0.03520906]
[1748021659503,5.55122094,181.45,181.43,0.03520906]
[1748021659906,0.04112094,181.45,181.43,0.03520906]
[1748021660201,0.04112094,181.45,181.44,5.5104]
[1748021661199,0.04112094,181.45,181.43,5.54580906]
[1748021661396,0.04112094,181.45,181.43,0.03520906]
[1748021661997,5.5104,181.44,181.43,0.03520906]
[1748021662797,0.04112094,181.45,181.43,0.03520906]
[1748021663191,0.04112094,181.45,181.44,5.5104]
[1748021664795,0.04112094,181.45,181.43,5.54580906]
[1748021665101,0.04112094,181.45,181.43,0.03520906]
[1748021666196,0.04112094,181.45,181.44,5.5101]
[1748021666692,0.04112094,181.45,181.43,0.03520906]
[1748021667796,0.04112094,181.45,181.43,5.54540906]
[1748021668104,0.04112094,181.45,181.43,0.03520906]
[1748021668502,5.5098,181.44,181.43,0.03520906]
[1748021669205,5.55062094,181.45,181.43,0.03520906]
[1748021670101,5.5098,181.44,181.43,0.03520906]
[1748021670705,0.04112094,181.45,181.43,0.03520906]
[1748021671396,5.5098,181.44,181.43,0.03520906]
[1748021671596,0.04112094,181.45,181.43,0.03520906]
[1748021673409,5.5098,181.44,181.43,0.03520906]
[1748021673607,0.04112094,181.45,181.43,0.03520906]
[1748021673905,5.55082094,181.45,181.43,0.03520906]
[1748021674309,5.5098,181.44,181.43,0.03520906]
[1748021678008,0.04112094,181.45,181.43,0.03520906]
[1748021680010,0.04112094,181.45,181.43,5.54520906]
[1748021680411,0.04112094,181.45,181.43,0.03520906]
[1748021682715,0.04112094,181.45,181.43,5.54520906]
[1748021682903,0.04112094,181.45,181.43,0.03520906]
[1748021683108,5.55062094,181.45,181.43,0.03520906]
[1748021683712,0.04112094,181.45,181.43,0.03520906]
[1748021684516,5.5098,181.44,181.43,0.03520906]
[1748021684714,0.04112094,181.45,181.43,0.03520906]
[1748021685517,114.68,181.52,181.43,0.03520906]
[1748021686016,8.54451213,181.5,181.43,0.03520906]
[1748021686210,123.22451213,181.52,181.43,0.03520906]
[1748021686419,0.03837258,181.49,181.43,0.03520906]
[1748021687917,0.03837258,181.49,181.44,5.5097]
[1748021688719,5.5089,181.47,181.43,5.54530906]
[1748021689019,0.03837258,181.49,181.43,5.54530906]
[1748021689319,5.5088,181.48,181.43,5.54530906]
[1748021689516,5.5088,181.48,181.44,5.5097]
[1748021689817,0.03837258,181.49,181.43,0.03520906]
[1748021690916,5.5091,181.47,181.43,0.03520906]
[1748021691622,5.5092,181.46,181.43,0.03520906]
[1748021692323,5.5095,181.45,181.43,0.03520906]
[1748021692723,0.03837258,181.49,181.43,0.03520906]
[1748021692922,5.5094,181.46,181.43,0.03520906]
[1748021693625,5.5089,181.47,181.43,5.54520906]
[1748021694026,0.03837258,181.49,181.43,5.54520906]
[1748021694229,5.5092,181.46,181.43,285.03520906]
[1748021694831,0.03837258,181.49,181.43,285.03520906]
[1748021695528,5.5092,181.46,181.43,285.03520906]
[1748021695828,5.5092,181.46,181.43,290.54530906]
[1748021696128,5.5089,181.47,181.43,290.54530906]
[1748021697028,5.5092,181.46,181.43,290.54530906]
[1748021698030,5.5095,181.45,181.43,285.03520906]
[1748021698232,0.03837258,181.49,181.43,285.03520906]
[1748021698529,127.1,181.48,181.43,285.03520906]
[1748021699133,5.5098,181.44,181.43,285.03520906]
[1748021699835,5.5098,181.44,181.43,0.03520906]
[1748021700634,5.55012126,181.45,181.43,0.03520906]
[1748021700932,0.04062126,181.45,181.43,0.03520906]
[1748021701238,1.9227,181.55,181.44,104.72]
[1748021701535,603.06,181.54,181.44,104.72]
[1748021701842,5.5077,181.51,181.44,104.72]
[1748021702139,5.5077,181.51,181.47,5.5087]
[1748021702329,5.54959155,181.51,181.47,0.0397326]
[1748021703638,5.54959155,181.51,181.48,5.5084]
[1748021705745,0.04189155,181.51,181.49,5.5083]
[1748021707450,5.54959155,181.51,181.48,5.5086]
[1748021707647,0.04189155,181.51,181.48,5.5086]
[1748021707847,0.04189155,181.51,181.47,0.0397326]
[1748021708048,0.04189155,181.51,181.49,5.508]
[1748021708350,0.04189155,181.51,181.47,0.0397326]
[1748021708950,0.04189155,181.51,181.47,285.0397326]
[1748021709851,0.04189155,181.51,181.48,5.5085]
[1748021710256,0.04189155,181.51,181.47,285.0397326]
[1748021710551,5.54969155,181.51,181.48,5.5085]
[1748021711350,0.04189155,181.51,181.49,5.5083]
[1748021711955,0.04189155,181.51,181.5,5.508]
[1748021713560,0.04189155,181.51,181.49,5.5082]
[1748021713752,0.04189155,181.51,181.47,285.0397326]
[1748021715564,0.04189155,181.51,181.49,5.5081]
[1748021715858,0.04189155,181.51,181.47,285.0397326]
[1748021716458,0.04189155,181.51,181.49,5.5082]
[1748021716864,0.04189155,181.51,181.47,285.0397326]
[1748021717557,0.04189155,181.51,181.49,5.5081]
[1748021721654,0.04189155,181.51,181.5,5.508]
[1748021722262,0.04189155,181.51,181.49,5.5082]
[1748021722568,0.04189155,181.51,181.47,285.0397326]
[1748021723570,0.04189155,181.51,181.5,5.508]
[1748021723888,1.9945,181.61,181.5,516.08]
[1748021724173,126.4,181.65,181.58,5.5053]
[1748021724470,126.4,181.65,181.53,1.8651]
[1748021724668,126.4,181.65,181.53,286.8651]
[1748021724962,0.03893423,181.61,181.57,0.03527654]
[1748021725168,0.03893423,181.61,181.57,285.03527654]
[1748021725570,0.03893423,181.61,181.59,5.5051]
[1748021725868,0.03893423,181.61,181.57,285.03527654]
[1748021726565,0.03893423,181.61,181.59,5.505]
[1748021726767,0.03893423,181.61,181.57,285.03527654]
[1748021727268,0.03893423,181.61,181.58,5.5055]
[1748021727468,0.03893423,181.61,181.57,285.03527654]
[1748021727768,0.03893423,181.61,181.59,5.505]
[1748021728163,0.03893423,181.61,181.57,285.03527654]
[1748021729573,0.03893423,181.61,181.58,5.5055]
[1748021731076,5.54373423,181.61,181.58,5.5055]
[1748021731873,0.03893423,181.61,181.58,5.5055]
[1748021732274,0.03893423,181.61,181.59,5.5052]
[1748021732474,0.03893423,181.61,181.57,285.03527654]
[1748021732875,0.03893423,181.61,181.57,290.54087654]
[1748021733673,5.54373423,181.61,181.57,290.54087654]
[1748021733874,0.03893423,181.61,181.57,290.54087654]
[1748021734173,5.54363423,181.61,181.58,5.5055]
[1748021734475,0.03893423,181.61,181.57,285.03527654]
[1748021734669,5.505,181.6,181.57,290.54087654]
[1748021735478,5.54373423,181.61,181.58,5.5054]
[1748021735869,0.03893423,181.61,181.57,285.03527654]
[1748021737869,5.54383423,181.61,181.57,290.54087654]
[1748021738076,0.03893423,181.61,181.57,290.54087654]
[1748021738370,5.54363423,181.61,181.58,5.5056]
[1748021738975,5.505,181.6,181.57,395.18107654]
[1748021739176,0.03893423,181.61,181.57,395.18107654]
[1748021739476,5.54373423,181.61,181.57,395.18107654]
[1748021739975,5.54373423,181.61,181.57,110.18107654]
[1748021740177,5.54373423,181.61,181.58,5.5054]
[1748021740580,5.505,181.6,181.57,104.67527654]
[1748021741278,5.505,181.6,181.57,110.18097654]
[1748021741578,5.54363423,181.61,181.57,104.67527654]
[1748021741978,5.54363423,181.61,181.58,5.5055]
[1748021746777,0.03893423,181.61,181.57,104.67527654]
[1748021747681,5.505,181.6,181.57,110.18107654]
[1748021748082,0.03893423,181.61,181.57,104.67527654]
[1748021748372,0.03893423,181.61,181.57,113.21978867]
[1748021748572,122.46,181.68,181.58,1.9985]
[1748021748773,122.46,181.68,181.58,286.9985]
[1748021749382,122.46,181.68,181.61,5.5047]
[1748021749573,0.03647522,181.65,181.61,5.54353312]
[1748021749875,0.03647522,181.65,181.61,0.03883312]
[1748021750080,5.504,181.64,181.61,0.03883312]
[1748021750382,5.504,181.64,181.61,285.03883312]
[1748021750773,5.5042,181.63,181.61,285.03883312]
[1748021751068,0.03647522,181.65,181.61,285.03883312]
[1748021751782,5.5039,181.64,181.61,290.54333312]
[1748021752682,0.03647522,181.65,181.61,285.03883312]
[1748021753484,5.5043,181.62,181.61,285.03883312]
[1748021756090,5.5043,181.62,181.61,0.03883312]
[1748021763105,5.5068,181.54,181.52,409.251]
[1748021763405,10.40351213,181.61,181.52,407.44]
[1748021763606,10.40351213,181.61,181.52,285.0]
[1748021764009,1.9236,181.6,181.52,285.0]
[1748021764309,5.5065,181.55,181.54,0.03773535]
[1748021764510,127.9465,181.55,181.54,0.03773535]
[1748021765311,5.5081,181.5,181.48,389.62]
[1748021765505,130.98451213,181.55,181.47,5.08664792]
[1748021765706,130.98451213,181.55,181.45,286.8232]
[1748021765707,5.5085,181.49,181.45,286.8232]
[1748021765910,5.5085,181.49,181.45,292.3325]
[1748021766213,5.54343074,181.49,181.45,292.37125934]
[1748021766410,5.5092,181.46,181.45,0.03875934]
[1748021768818,5.51,181.44,181.39,5.5114]
[1748021769010,5.51,181.44,181.37,1.9886]
[1748021769204,5.51,181.44,181.39,5.5113]
[1748021769414,5.51,181.44,181.37,1.9886]
[1748021769717,0.04103806,181.42,181.39,0.04016359]
[1748021770919,0.04103806,181.42,181.4,5.5108]
[1748021771114,122.46,181.48,181.39,0.04016359]
[1748021771719,122.46,181.48,181.43,5.51]
[1748021772017,5.5091,181.47,181.42,5.5104]
[1748021772211,0.0375956,181.46,181.43,0.03515101]
[1748021773220,5.5468956,181.46,181.43,0.03515101]
[1748021774520,5.5096,181.45,181.43,0.03515101]
[1748021774724,0.0375956,181.46,181.43,0.03515101]
[1748021775419,5.5098,181.44,181.43,0.03515101]
[1748021775717,0.0375956,181.46,181.43,0.03515101]
[1748021776621,5.5098,181.44,181.43,0.03515101]
[1748021778121,5.5097,181.45,181.43,0.03515101]
[1748021778815,5.5468956,181.46,181.43,0.03515101]
[1748021779119,0.0375956,181.46,181.43,0.03515101]
[1748021780122,5.5098,181.44,181.43,0.03515101]
[1748021782422,0.0375956,181.46,181.43,0.03515101]
[1748021782619,0.0375956,181.46,181.43,285.03515101]
[1748021782822,0.0375956,181.46,181.45,5.5095]
[1748021783120,122.46,181.48,181.43,285.03515101]
[1748021784222,0.04011809,181.47,181.43,285.03515101]
[1748021785024,5.5094,181.46,181.43,285.03515101]
[1748021785319,0.04011809,181.47,181.43,285.03515101]
[1748021785824,5.5098,181.44,181.43,285.03515101]
[1748021786015,5.5098,181.44,181.43,0.03515101]
[1748021786322,5.5097,181.45,181.43,0.03515101]
[1748021786529,0.04011809,181.47,181.43,0.03515101]
[1748021787021,5.5098,181.44,181.43,0.03515101]
[1748021792225,5.5125,181.36,181.3,285.0]
[1748021792430,122.82,181.4,181.3,285.0]
[1748021792633,122.82,181.39,181.3,285.0]
[1748021792926,5.5131,181.34,181.3,285.0]
[1748021793119,122.82,181.39,181.3,285.0]
[1748021793320,5.5127,181.35,181.33,0.03529446]
[1748021793730,5.5129,181.34,181.33,0.03529446]
[1748021795928,0.04194784,181.36,181.33,0.03529446]
[1748021796228,0.04194784,181.36,181.34,5.5128]
[1748021796528,0.04194784,181.36,181.33,0.03529446]
[1748021797019,0.04194784,181.36,181.33,5.54839446]
[1748021797522,0.04194784,181.36,181.34,5.5129]
[1748021798326,0.04194784,181.36,181.33,5.54839446]
[1748021799126,0.04194784,181.36,181.34,5.5128]
[1748021799431,5.55424784,181.36,181.33,0.03529446]
[1748021799730,0.04194784,181.36,181.34,5.5128]
[1748021800425,0.04194784,181.36,181.33,5.54829446]
[1748021800730,0.04194784,181.36,181.33,285.03529446]
[1748021800948,0.04194784,181.36,181.35,5.5125]
[1748021801333,10.39731213,181.45,181.35,5.5125]
[1748021801532,122.86,181.48,181.36,1.9307]
[1748021801923,5.51,181.44,181.4,5.5108]
[1748021802219,122.86,181.48,181.4,285.0]
[1748021802424,5.5097,181.45,181.42,5.54909034]
[1748021803233,5.51,181.44,181.42,0.03889034]
[1748021803428,0.03750826,181.46,181.42,0.03889034]
[1748021803835,5.5097,181.45,181.42,0.03889034]
[1748021804131,0.03750826,181.46,181.42,0.03889034]
[1748021804434,5.5098,181.45,181.42,0.03889034]
[1748021805237,0.03750826,181.46,181.42,0.03889034]
[1748021806132,5.5101,181.43,181.42,0.03889034]
[1748021808434,129.90451213,181.43,181.34,286.8656]
[1748021808733,129.90451213,181.43,181.34,1.8656]
[1748021809128,5.5123,181.36,181.34,1.8656]
[1748021809838,5.5125,181.35,181.34,1.8656]
[1748021810039,5.5125,181.35,181.33,104.78129273]
[1748021810334,5.5128,181.34,181.33,0.04129273]
[1748021811440,5.5123,181.36,181.33,0.04129273]
[1748021812137,0.03625471,181.37,181.33,0.04129273]
[1748021813144,5.5128,181.35,181.33,0.04129273]
[1748021813344,0.03625471,181.37,181.33,0.04129273]
[1748021814040,5.5129,181.34,181.33,0.04129273]
[1748021815345,5.5126,181.35,181.33,0.04129273]
[1748021816444,5.5128,181.34,181.33,0.04129273]
[1748021818246,5.5127,181.35,181.33,0.04129273]
[1748021819244,5.5129,181.34,181.33,0.04129273]
[1748021820748,5.5129,181.34,181.33,9.273e-05]
[1748021826656,0.03625471,181.37,181.33,9.273e-05]
[1748021827154,5.5129,181.34,181.33,9.273e-05]
[1748021838855,8.54451213,181.31,181.21,290.08664792]
[1748021839167,118.4,181.3,181.21,5.08664792]
[1748021839370,5.5165,181.22,181.21,5.08664792]
[1748021840066,5.5168,181.21,181.2,0.03868352]
[1748021842355,5.5168,181.21,181.2,8.352e-05]
[1748021844570,0.04210042,181.23,181.2,8.352e-05]
[1748021845464,0.04210042,181.23,181.22,5.5165]
[1748021857682,0.04210042,181.23,181.2,8.352e-05]
[1748021858090,5.5165,181.22,181.2,5.51718352]
[1748021858291,5.5165,181.22,181.2,8.352e-05]
[1748021859691,5.5165,181.22,181.2,5.51718352]
[1748021860092,5.55840042,181.23,181.21,5.5168]
[1748021860292,5.55840042,181.23,181.2,8.352e-05]
[1748021860787,5.55840042,181.23,181.2,5.51698352]
[1748021862692,0.04210042,181.23,181.2,8.352e-05]
[1748021863488,5.5167,181.22,181.2,8.352e-05]
[1748021863688,0.04210042,181.23,181.2,8.352e-05]
[1748021863876,5.5168,181.21,181.2,8.352e-05]
[1748021865989,0.04210042,181.23,181.2,8.352e-05]
[1748021866289,0.04210042,181.23,181.22,5.5165]
[1748021875590,0.04210042,181.23,181.22,290.5165]
[1748021876994,4.2e-07,181.23,181.22,290.5165]